fUSD/lending_fUSD_20260623
["ID","MTS","AMOUNT","RATE_DAILY","PERIOD"]
[426091718,1782144642000,-1235.18214925,0.00022289,2]
[426091721,1782144642000,-1377.42282658,0.00022289,2]
[426091717,1782144642000,-1191.11104074,0.00022289,2]
[426091713,1782144642000,-1030.0,0.00022289,2]
[426091722,1782144642000,-1428.38747117,0.00022289,2]
[426091716,1782144642000,-1148.61238259,0.00022289,2]
[426091720,1782144642000,-1328.27659266,0.00022289,2]
[426091712,1782144642000,-785.0,0.00022268,2]
[426091714,1782144642000,-1068.11,0.00022289,2]
[426091711,1782144642000,-489.0,0.00022229,2]
[426091710,1782144642000,-2157.14243826,0.00022192,2]
[426091723,1782144642000,-1481.2378076,0.00022289,2]
[426091715,1782144642000,-1107.63007,0.00022289,2]
[426091725,1782144642000,-151.0,0.00022289,2]
[426091731,1782144642000,-500.0,0.00022289,2]
[426091728,1782144642000,-1712.93078311,0.00022289,2]
[426091729,1782144642000,-500.0,0.00022289,2]
[426091742,1782144642000,-500.0,0.00022289,2]
[426091746,1782144642000,-500.0,0.00022289,2]
[426091737,1782144642000,-1980.8648231,0.00022289,2]
[426091745,1782144642000,-500.0,0.00022289,2]
[426091741,1782144642000,-151.0,0.00022289,2]
[426091740,1782144642000,-152.0,0.00022289,2]
[426091743,1782144642000,-152.0,0.00022289,2]
[426091744,1782144642000,-500.0,0.00022289,2]
[426091736,1782144642000,-500.0,0.00022289,2]
[426091738,1782144642000,-2054.15682156,0.00022289,2]
[426091747,1782144642000,-500.0,0.00022289,2]
[426091734,1782144642000,-1910.18787185,0.00022289,2]
[426091733,1782144642000,-500.0,0.00022289,2]
[426091735,1782144642000,-152.0,0.00022289,2]
[426091732,1782144642000,-1842.0326633,0.00022289,2]
[426091739,1782144642000,-500.0,0.00022289,2]
[426091730,1782144642000,-1776.30922209,0.00022289,2]
[426091869,1782144643000,-1258.0,0.00023,2]
[426091867,1782144643000,-512.0,0.00023,2]
[426091857,1782144643000,-1139.0,0.00023,2]
[426091865,1782144643000,-938.0,0.00023,2]
[426091855,1782144643000,-200.0,0.00022989,2]
[426091859,1782144643000,-839.0,0.00023,2]
[426091863,1782144643000,-165.23602648,0.00023,2]
[426091853,1782144643000,-243.22744987,0.00022949,2]
[426091871,1782144643000,-204.0,0.00023,2]
[426091861,1782144643000,-221.0,0.00023,2]
[426091873,1782144643000,-177.0,0.00023,2]
[426091877,1782144643000,-151.0,0.00023004,2]
[426091875,1782144643000,-2014.0,0.00023,2]
[426091886,1782144643000,-151.0,0.00023111,2]
[426091881,1782144643000,-206.0,0.00023009,2]
[426091879,1782144643000,-243.22744989,0.00023004,2]
[426091889,1782144643000,-448.38696378,0.000232,2]
[426091893,1782144643000,-190.98196405,0.0002326,21]
[426091895,1782144643000,-151.0,0.00023288,2]
[426091851,1782144643000,-151.0,0.00022949,2]
[426091891,1782144643000,-1525.49,0.00023229,7]
[426091901,1782144643000,-151.0,0.00023385,2]
[426091899,1782144643000,-2319.72410669,0.00023288,2]
[426091884,1782144643000,-501.0,0.00023093,4]
[426091849,1782144643000,-785.0,0.00022933,2]
[426091845,1782144643000,-243.22744987,0.00022894,2]
[426091839,1782144643000,-151.0,0.00022839,2]
[426091916,1782144643000,-187.78006524,0.00023385,2]
[426091819,1782144643000,-533.76605895,0.0002271,2]
[426091820,1782144643000,-151.0,0.00022729,2]
[426091821,1782144643000,-243.22744987,0.00022729,2]
[426091825,1782144643000,-151.0,0.00022784,2]
[426091824,1782144643000,-2236.95670847,0.0002274,2]
[426091826,1782144643000,-243.22744987,0.00022784,2]
[426091829,1782144643000,-194.72792766,0.00022837,2]
[426091828,1782144643000,-327.98278615,0.00022837,2]
[426091823,1782144643000,-200.0,0.0002274,2]
[426091822,1782144643000,-151.0,0.0002274,2]
[426091827,1782144643000,-151.0,0.00022837,2]
[426091831,1782144643000,-815.44410182,0.00022837,2]
[426091832,1782144643000,-157.20749069,0.00022837,2]
[426091830,1782144643000,-158.27328414,0.00022837,2]
[426091834,1782144643000,-218.80238326,0.00022837,2]
[426091843,1782144643000,-151.0,0.00022894,2]
[426091847,1782144643000,-489.0,0.00022914,2]
[426091833,1782144643000,-217.67800491,0.00022837,2]
[426091835,1782144643000,-194.72792766,0.00022837,2]
[426091838,1782144643000,-151.0,0.00022837,2]
[426091841,1782144643000,-243.22744987,0.00022839,2]
[426091836,1782144643000,-391.81075028,0.00022837,2]
[426091837,1782144643000,-181.08010149,0.00022837,2]
[426091907,1782144643000,-157.20749069,0.00023385,2]
[426091897,1782144643000,-200.0,0.00023288,2]
[426092005,1782144643000,-151.0,0.00023933,2]
[426091971,1782144643000,-206.64552006,0.00023781,2]
[426091964,1782144643000,-501.0,0.00023711,5]
[426091969,1782144643000,-1784.25,0.00023753,2]
[426091967,1782144643000,-200.0,0.00023744,2]
[426091998,1782144643000,-209.40437684,0.00023933,2]
[426091991,1782144643000,-151.0,0.00023933,2]
[426091987,1782144643000,-518.0,0.00023873,2]
[426091993,1782144643000,-158.27328422,0.00023933,2]
[426091995,1782144643000,-157.20749069,0.00023933,2]
[426091997,1782144643000,-815.44410182,0.00023933,2]
[426092001,1782144643000,-391.81075028,0.00023933,2]
[426092007,1782144643000,-1139.0,0.00024,2]
[426092003,1782144643000,-194.72792766,0.00023933,2]
[426092009,1782144643000,-500.0,0.00024,2]
[426092013,1782144643000,-221.0,0.00024,2]
[426092011,1782144643000,-839.0,0.00024,2]
[426092017,1782144643000,-938.0,0.00024,2]
[426092015,1782144643000,-1042.99876031,0.00024,2]
[426092019,1782144643000,-3600.0,0.00024,2]
[426092021,1782144643000,-150888.80083963,0.00024,2]
[426092023,1782144643000,-1261.27451767,0.00024,2]
[426091903,1782144643000,-177.1353978,0.00023385,2]
[426092025,1782144643000,-512.0,0.00024,2]
[426091983,1782144643000,-200.0,0.00023839,2]
[426091980,1782144643000,-200.0,0.00023839,2]
[426091989,1782144643000,-785.0,0.0002393,2]
[426091976,1782144643000,-200.0,0.00023836,2]
[426091905,1782144643000,-158.27328414,0.00023385,2]
[426091914,1782144643000,-391.81075028,0.00023385,2]
[426091911,1782144643000,-201.93286098,0.00023385,2]
[426091909,1782144643000,-815.44410182,0.00023385,2]
[426091918,1782144643000,-151.0,0.00023385,2]
[426091920,1782144643000,-518.21,0.00023447,2]
[426091930,1782144643000,-489.0,0.00023599,2]
[426091978,1782144643000,-2405.55389863,0.00023836,2]
[426091931,1782144643000,-156.24918832,0.00023602,2]
[426091935,1782144643000,-200.0,0.00023603,2]
[426091928,1782144643000,-324.35266476,0.00023545,2]
[426091926,1782144643000,-350.0,0.00023534,5]
[426091934,1782144643000,-200.0,0.00023603,2]
[426091984,1782144643000,-197.24211976,0.00023839,2]
[426091922,1782144643000,-1765.77335329,0.000235,2]
[426091974,1782144643000,-151.0,0.00023836,2]
[426091962,1782144643000,-150.0,0.00023667,2]
[426091960,1782144643000,-216.21774699,0.00023667,2]
[426091954,1782144643000,-159.37526205,0.00023603,2]
[426091956,1782144643000,-345147.40858217,0.00023603,2]
[426091940,1782144643000,-151.0,0.00023603,2]
[426091942,1782144643000,-173.283087,0.00023603,2]
[426091938,1782144643000,-200.0,0.00023603,2]
[426091924,1782144643000,-1079.63902776,0.00023529,10]
[426091958,1782144643000,-151.0,0.00023659,2]
[426092098,1782144644000,-2121.76,0.00024627,7]
[426092086,1782144644000,-151.0,0.00024481,2]
[426092090,1782144644000,-391.81075028,0.00024481,2]
[426092089,1782144644000,-217.15233878,0.00024481,2]
[426092092,1782144644000,-151.0,0.00024481,2]
[426092088,1782144644000,-815.44410182,0.00024481,2]
[426092077,1782144644000,-719.5,0.00024324,2]
[426092083,1782144644000,-200.0,0.00024384,2]
[426092082,1782144644000,-151.0,0.00024384,2]
[426092085,1782144644000,-4103.0,0.00024468,5]
[426092078,1782144644000,-180.51833844,0.00024324,2]
[426092094,1782144644000,-200.0,0.00024561,2]
[426092084,1782144644000,-2494.55939288,0.00024384,2]
[426092096,1782144644000,-249.43851771,0.00024575,2]
[426092105,1782144644000,-518.0,0.00024695,2]
[426092093,1782144644000,-200.0,0.000245,2]
[426092099,1782144644000,-171.64,0.00024658,8]
[426092095,1782144644000,-200.0,0.00024561,2]
[426092097,1782144644000,-785.0,0.00024595,2]
[426092101,1782144644000,-980.68,0.00024658,2]
[426092112,1782144644000,-785.0,0.00024927,2]
[426092102,1782144644000,-150.0,0.0002469,2]
[426092111,1782144644000,-350.0,0.00024916,6]
[426092100,1782144644000,-1000.0,0.00024658,2]
[426092103,1782144644000,-150.0,0.0002469,2]
[426092104,1782144644000,-150.0,0.0002469,2]
[426092107,1782144644000,-151.0,0.00024755,2]
[426092081,1782144644000,-778.0,0.0002435,10]
[426092091,1782144644000,-201.93286098,0.00024481,2]
[426092080,1782144644000,-501.0,0.0002433,6]
[426092033,1782144644000,-285.0,0.00024065,2]
[426092087,1782144644000,-157.20749069,0.00024481,2]
[426092029,1782144644000,-204.0,0.00024,2]
[426092031,1782144644000,-177.0,0.00024,2]
[426092108,1782144644000,-1525.49,0.00024844,7]
[426092027,1782144644000,-11203.09467203,0.00024,2]
[426092035,1782144644000,-200.0,0.00024077,2]
[426092037,1782144644000,-200.0,0.00024077,2]
[426092040,1782144644000,-558.41,0.000241,7]
[426092042,1782144644000,-400.5977346,0.00024143,2]
[426092048,1782144644000,-1360.0,0.00024168,2]
[426092051,1782144644000,-383.0,0.00024168,2]
[426092044,1782144644000,-744.55644071,0.00024149,2]
[426092046,1782144644000,-1276.0,0.00024168,2]
[426092054,1782144644000,-1229.0,0.00024178,2]
[426092053,1782144644000,-4037.71,0.00024174,2]
[426092057,1782144644000,-3648.0,0.00024178,2]
[426092058,1782144644000,-6082.0,0.00024178,2]
[426092061,1782144644000,-151.0,0.00024207,2]
[426092064,1782144644000,-785.0,0.00024262,2]
[426092065,1782144644000,-489.0,0.00024284,2]
[426092063,1782144644000,-3774.65181799,0.0002421,2]
[426092066,1782144644000,-10835.64216132,0.0002429,7]
[426092069,1782144644000,-632.0,0.000243,2]
[426092071,1782144644000,-620.0,0.000243,2]
[426092075,1782144644000,-200.0,0.00024318,2]
[426092067,1782144644000,-1000.0,0.000243,2]
[426092073,1782144644000,-200.0,0.00024318,2]
[426092076,1782144644000,-275.26090029,0.00024318,2]
[426092079,1782144644000,-180.51833844,0.00024324,2]
[426092109,1782144644000,-150.0,0.0002485,2]
[426092120,1782144644000,-840.75778606,0.00025,2]
[426092110,1782144644000,-181.05344413,0.00024914,2]
[426092146,1782144644000,-354.01,0.00025,2]
[426092151,1782144644000,-354.01,0.00025,2]
[426092144,1782144644000,-354.01,0.00025,2]
[426092152,1782144644000,-599.60298507,0.00025028,2]
[426092147,1782144644000,-354.01,0.00025,2]
[426092149,1782144644000,-354.01,0.00025,2]
[426092150,1782144644000,-354.01,0.00025,2]
[426092148,1782144644000,-354.01,0.00025,2]
[426092154,1782144644000,-151.0,0.00025029,2]
[426092153,1782144644000,-670.58624095,0.00025028,2]
[426092157,1782144644000,-225.18697532,0.00025029,2]
[426092106,1782144644000,-150.0,0.000247,2]
[426092164,1782144644000,-311.0,0.00025169,2]
[426092165,1782144644000,-1509.8046181,0.00025193,2]
[426092156,1782144644000,-815.44410182,0.00025029,2]
[426092158,1782144644000,-391.81075028,0.00025029,2]
[426092162,1782144644000,-1784.25,0.00025123,2]
[426092160,1782144644000,-151.0,0.00025029,2]
[426092161,1782144644000,-300.0,0.000251,2]
[426092159,1782144644000,-209.40437684,0.00025029,2]
[426092163,1782144644000,-502.24466829,0.00025124,2]
[426092166,1782144644000,-226.97211214,0.00025205,7]
[426092167,1782144644000,-3587.04251905,0.00025205,7]
[426092168,1782144644000,-36699.0,0.00025217,2]
[426092172,1782144644000,-152.0,0.00025377,4]
[426092169,1782144644000,-200.0,0.00025255,2]
[426092173,1782144644000,-185.40875435,0.00025437,2]
[426092171,1782144644000,-151.0,0.00025303,2]
[426092170,1782144644000,-785.0,0.00025259,2]
[426092143,1782144644000,-354.01,0.00025,2]
[426092142,1782144644000,-354.01,0.00025,2]
[426092155,1782144644000,-157.20749069,0.00025029,2]
[426092140,1782144644000,-223.91209571,0.00025,2]
[426092115,1782144644000,-2586.85809042,0.00024932,2]
[426092145,1782144644000,-354.01,0.00025,2]
[426092116,1782144644000,-501.0,0.00024948,6]
[426092117,1782144644000,-489.0,0.00024969,2]
[426092114,1782144644000,-200.0,0.00024932,2]
[426092123,1782144644000,-1819.18711919,0.00025,2]
[426092118,1782144644000,-199.93264929,0.00025,2]
[426092119,1782144644000,-1155.36283729,0.00025,2]
[426092121,1782144644000,-221.94528994,0.00025,2]
[426092122,1782144644000,-211.47667006,0.00025,2]
[426092124,1782144644000,-943.6976076,0.00025,2]
[426092125,1782144644000,-540.0,0.00025,2]
[426092127,1782144644000,-3101.77430923,0.00025,2]
[426092113,1782144644000,-151.0,0.00024932,2]
[426092138,1782144644000,-216.35787048,0.00025,10]
[426092126,1782144644000,-622.51188444,0.00025,2]
[426092139,1782144644000,-216.35787048,0.00025,7]
[426092135,1782144644000,-630.61457372,0.00025,5]
[426092130,1782144644000,-50000.0,0.00025,10]
[426092132,1782144644000,-2242.72727385,0.00025,2]
[426092133,1782144644000,-3379.23091969,0.00025,2]
[426092141,1782144644000,-195.58537308,0.00025,2]
[426092131,1782144644000,-60294.26158838,0.00025,7]
[426092134,1782144644000,-170.53466025,0.00025,2]
[426092129,1782144644000,-7263.86191529,0.00025,2]
[426092128,1782144644000,-529.51646338,0.00025,2]
[426092137,1782144644000,-1006.45941507,0.00025,2]
[426092136,1782144644000,-4884.54048851,0.00025,2]
[426092222,1782144645000,-1012.1,0.00025786,2]
[426092217,1782144645000,-150.0,0.00025684,2]
[426092215,1782144645000,-400.5977346,0.00025629,2]
[426092210,1782144645000,-233.5188934,0.00025577,2]
[426092214,1782144645000,-785.0,0.00025592,2]
[426092212,1782144645000,-217.15233878,0.00025577,2]
[426092211,1782144645000,-391.81075028,0.00025577,2]
[426092207,1782144645000,-151.0,0.00025577,2]
[426092208,1782144645000,-157.20749069,0.00025577,2]
[426092216,1782144645000,-150.0,0.00025684,2]
[426092205,1782144645000,-202.4,0.00025548,2]
[426092213,1782144645000,-151.0,0.00025577,2]
[426092220,1782144645000,-3561.0,0.00025684,2]
[426092223,1782144645000,-2339.05,0.00025786,2]
[426092224,1782144645000,-52139.13,0.00025786,2]
[426092226,1782144645000,-216.35787048,0.000258,10]
[426092221,1782144645000,-558.41,0.000257,7]
[426092230,1782144645000,-785.0,0.00025924,2]
[426092218,1782144645000,-150.0,0.00025684,2]
[426092227,1782144645000,-500.0,0.00025836,2]
[426092228,1782144645000,-151.0,0.00025851,2]
[426092225,1782144645000,-4037.71,0.00025786,2]
[426092232,1782144645000,-612.79847226,0.0002599,2]
[426092243,1782144645000,-2781.82699784,0.00026028,2]
[426092242,1782144645000,-200.0,0.00026028,2]
[426092241,1782144645000,-151.0,0.00026028,2]
[426092209,1782144645000,-815.44410182,0.00025577,2]
[426092219,1782144645000,-150.0,0.00025684,2]
[426092206,1782144645000,-501.0,0.00025567,7]
[426092192,1782144645000,-160.91673313,0.00025453,2]
[426092200,1782144645000,-151.0,0.0002548,2]
[426092235,1782144645000,-550.0,0.00026,2]
[426092177,1782144645000,-198.68099445,0.00025437,2]
[426092178,1782144645000,-203.67761252,0.00025437,2]
[426092179,1782144645000,-181.37183703,0.00025437,2]
[426092174,1782144645000,-197.69096546,0.00025437,2]
[426092176,1782144645000,-158.45858651,0.00025437,2]
[426092175,1782144645000,-184.31693168,0.00025437,2]
[426092181,1782144645000,-193.43274684,0.00025437,2]
[426092191,1782144645000,-184.26468098,0.00025453,2]
[426092180,1782144645000,-171.20767822,0.00025437,2]
[426092182,1782144645000,-166.20179216,0.00025437,2]
[426092183,1782144645000,-175.55783824,0.00025437,2]
[426092184,1782144645000,-159.23432883,0.00025451,2]
[426092203,1782144645000,-164.47727154,0.00025497,2]
[426092186,1782144645000,-158.12530465,0.00025453,2]
[426092190,1782144645000,-152.64564695,0.00025453,2]
[426092187,1782144645000,-164.8907304,0.00025453,2]
[426092188,1782144645000,-160.5356423,0.00025453,2]
[426092189,1782144645000,-194.99923137,0.00025453,2]
[426092195,1782144645000,-218.55083892,0.00025467,2]
[426092199,1782144645000,-150.26862468,0.00025467,2]
[426092201,1782144645000,-200.0,0.0002548,2]
[426092202,1782144645000,-2682.57183977,0.0002548,2]
[426092196,1782144645000,-159.54773013,0.00025467,2]
[426092194,1782144645000,-172.8233428,0.00025453,2]
[426092204,1782144645000,-319.201689,0.00025517,2]
[426092198,1782144645000,-3322.06066285,0.00025467,2]
[426092197,1782144645000,-692.27287416,0.00025467,2]
[426092185,1782144645000,-182.11056311,0.00025451,2]
[426092236,1782144645000,-1135.37316374,0.00026,2]
[426092193,1782144645000,-204.16758155,0.00025453,2]
[426092234,1782144645000,-14701.54489088,0.00026,2]
[426092277,1782144645000,-166.842779,0.00026384,2]
[426092274,1782144645000,-166.842779,0.00026384,2]
[426092278,1782144645000,-253.1680929,0.00026397,2]
[426092275,1782144645000,-166.842779,0.00026384,2]
[426092272,1782144645000,-166.842779,0.00026384,2]
[426092273,1782144645000,-166.842779,0.00026384,2]
[426092279,1782144645000,-452.620133,0.00026399,2]
[426092280,1782144645000,-28040.80563702,0.000264,2]
[426092296,1782144645000,-50000.0,0.000265,4]
[426092281,1782144645000,-744.55644071,0.000264,2]
[426092283,1782144645000,-424.51413,0.00026421,2]
[426092294,1782144645000,-50000.0,0.000265,2]
[426092291,1782144645000,-50000.0,0.000265,3]
[426092270,1782144645000,-166.842779,0.00026384,2]
[426092292,1782144645000,-50000.0,0.000265,4]
[426092282,1782144645000,-477.170604,0.00026421,2]
[426092284,1782144645000,-369.639775,0.00026433,2]
[426092285,1782144645000,-210.0,0.00026433,5]
[426092290,1782144645000,-50000.0,0.000265,2]
[426092287,1782144645000,-1525.49,0.00026459,7]
[426092286,1782144645000,-14701.54489088,0.00026444,2]
[426092289,1782144645000,-50000.0,0.000265,6]
[426092288,1782144645000,-50000.0,0.000265,4]
[426092295,1782144645000,-50000.0,0.000265,3]
[426092299,1782144645000,-166.842779,0.000265,2]
[426092298,1782144645000,-8490.91,0.000265,2]
[426092300,1782144645000,-166.842779,0.000265,2]
[426092239,1782144645000,-9102.70088053,0.00026,5]
[426092293,1782144645000,-50000.0,0.000265,6]
[426092271,1782144645000,-166.842779,0.00026384,2]
[426092297,1782144645000,-50000.0,0.000265,6]
[426092266,1782144645000,-166.842779,0.00026384,2]
[426092244,1782144645000,-150.0,0.00026093,2]
[426092276,1782144645000,-166.842779,0.00026384,2]
[426092240,1782144645000,-200.0,0.0002601,2]
[426092238,1782144645000,-220.71389488,0.00026,2]
[426092253,1782144645000,-242.15909246,0.00026125,2]
[426092247,1782144645000,-177.0,0.000261,2]
[426092256,1782144645000,-151.0,0.00026125,2]
[426092257,1782144645000,-501.0,0.00026186,7]
[426092248,1782144645000,-2504.0,0.000261,2]
[426092252,1782144645000,-815.44410182,0.00026125,2]
[426092255,1782144645000,-225.18697532,0.00026125,2]
[426092246,1782144645000,-386.0,0.000261,2]
[426092251,1782144645000,-157.20749071,0.00026125,2]
[426092249,1782144645000,-398.01809096,0.000261,2]
[426092237,1782144645000,-4612.44726536,0.00026,2]
[426092245,1782144645000,-386.0,0.000261,2]
[426092254,1782144645000,-391.81075028,0.00026125,2]
[426092267,1782144645000,-166.842779,0.00026384,2]
[426092264,1782144645000,-166.842779,0.00026384,2]
[426092263,1782144645000,-166.842779,0.00026384,2]
[426092261,1782144645000,-719.5,0.00026296,2]
[426092268,1782144645000,-166.842779,0.00026384,2]
[426092262,1782144645000,-166.842779,0.00026384,2]
[426092258,1782144645000,-350.0,0.00026218,7]
[426092269,1782144645000,-166.842779,0.00026384,2]
[426092259,1782144645000,-14701.54489088,0.00026222,2]
[426092250,1782144645000,-2000.0,0.000261,2]
[426092260,1782144645000,-785.0,0.00026256,2]
[426092265,1782144645000,-166.842779,0.00026384,2]
[426092344,1782144646000,-204.80700667,0.00026726,2]
[426092343,1782144646000,-226.05870673,0.00026726,2]
[426092339,1782144646000,-364.22112622,0.00026724,2]
[426092341,1782144646000,-329.7814608,0.00026726,2]
[426092345,1782144646000,-389.99846273,0.00026726,2]
[426092337,1782144646000,-318.46865767,0.00026724,2]
[426092338,1782144646000,-225.64827983,0.00026724,2]
[426092336,1782144646000,-351.11567648,0.0002671,2]
[426092334,1782144646000,-332.40358432,0.0002671,2]
[426092335,1782144646000,-210.32996405,0.0002671,2]
[426092340,1782144646000,-316.25060929,0.00026726,2]
[426092342,1782144646000,-321.0712846,0.00026726,2]
[426092349,1782144646000,-195.6836118,0.00026726,2]
[426092346,1782144646000,-305.29129391,0.00026726,2]
[426092347,1782144646000,-171.66425818,0.00026726,2]
[426092356,1782144646000,-152.61646468,0.00026726,2]
[426092355,1782144646000,-408.3351631,0.00026726,2]
[426092351,1782144646000,-237.03304275,0.00026726,2]
[426092350,1782144646000,-154.7020948,0.00026726,2]
[426092354,1782144646000,-225.15466045,0.00026726,2]
[426092353,1782144646000,-321.83346627,0.00026726,2]
[426092352,1782144646000,-368.52936196,0.00026726,2]
[426092358,1782144646000,-345.6466856,0.00026726,2]
[426092357,1782144646000,-223.49105104,0.00026726,2]
[426092324,1782144646000,-368.63386337,0.0002671,2]
[426092365,1782144646000,-386.86549367,0.00026757,2]
[426092348,1782144646000,-229.93832611,0.00026726,2]
[426092329,1782144646000,-407.35522504,0.0002671,2]
[426092315,1782144646000,-251.11897888,0.00026673,2]
[426092327,1782144646000,-397.3619889,0.0002671,2]
[426092369,1782144646000,-451.72328452,0.00026845,2]
[426092301,1782144646000,-166.842779,0.000265,2]
[426092306,1782144646000,-151.0,0.00026576,2]
[426092307,1782144646000,-200.0,0.00026576,2]
[426092305,1782144646000,-313.05963474,0.00026558,2]
[426092303,1782144646000,-151.0,0.000265,2]
[426092302,1782144646000,-166.842779,0.000265,2]
[426092304,1782144646000,-176.90076653,0.00026524,2]
[426092309,1782144646000,-785.0,0.00026589,2]
[426092310,1782144646000,-5909.54829,0.00026594,2]
[426092308,1782144646000,-2884.75459676,0.00026576,2]
[426092311,1782144646000,-216.48,0.00026609,7]
[426092332,1782144646000,-226.67051891,0.0002671,2]
[426092312,1782144646000,-14701.54489088,0.00026667,2]
[426092313,1782144646000,-2000.0,0.00026667,7]
[426092316,1782144646000,-391.81075028,0.00026673,2]
[426092317,1782144646000,-233.5188934,0.00026673,2]
[426092318,1782144646000,-151.0,0.00026673,2]
[426092314,1782144646000,-815.44410182,0.00026673,2]
[426092320,1782144646000,-243.27897111,0.0002671,2]
[426092321,1782144646000,-370.81750871,0.0002671,2]
[426092330,1782144646000,-362.74367407,0.0002671,2]
[426092325,1782144646000,-316.91717302,0.0002671,2]
[426092333,1782144646000,-200.18459045,0.0002671,2]
[426092323,1782144646000,-186.10420725,0.0002671,2]
[426092331,1782144646000,-342.41535644,0.0002671,2]
[426092319,1782144646000,-224.71971872,0.0002671,2]
[426092363,1782144646000,-319.09546027,0.00026741,2]
[426092322,1782144646000,-395.38193092,0.0002671,2]
[426092362,1782144646000,-163.4724224,0.00026741,2]
[426092392,1782144646000,-500.0,0.00027002,2]
[426092397,1782144646000,-200.0,0.00027002,2]
[426092399,1782144646000,-200.0,0.00027002,2]
[426092401,1782144646000,-200.0,0.00027002,2]
[426092402,1782144646000,-200.0,0.00027002,2]
[426092400,1782144646000,-200.0,0.00027002,2]
[426092404,1782144646000,-200.0,0.00027002,2]
[426092408,1782144646000,-200.0,0.00027002,2]
[426092407,1782144646000,-200.0,0.00027002,2]
[426092403,1782144646000,-200.0,0.00027002,2]
[426092398,1782144646000,-200.0,0.00027002,2]
[426092405,1782144646000,-200.0,0.00027002,2]
[426092409,1782144646000,-200.0,0.00027002,2]
[426092410,1782144646000,-200.0,0.00027002,2]
[426092411,1782144646000,-200.0,0.00027002,2]
[426092413,1782144646000,-200.0,0.00027002,2]
[426092417,1782144646000,-200.0,0.00027002,2]
[426092412,1782144646000,-200.0,0.00027002,2]
[426092415,1782144646000,-200.0,0.00027002,2]
[426092416,1782144646000,-200.0,0.00027002,2]
[426092414,1782144646000,-200.0,0.00027002,2]
[426092419,1782144646000,-200.0,0.00027002,2]
[426092418,1782144646000,-200.0,0.00027002,2]
[426092421,1782144646000,-200.0,0.00027002,2]
[426092422,1782144646000,-200.0,0.00027002,2]
[426092420,1782144646000,-200.0,0.00027002,2]
[426092361,1782144646000,-437.10167785,0.00026741,2]
[426092391,1782144646000,-500.0,0.00027002,2]
[426092393,1782144646000,-500.0,0.00027002,2]
[426092406,1782144646000,-200.0,0.00027002,2]
[426092389,1782144646000,-500.0,0.00027002,2]
[426092368,1782144646000,-501.0,0.00026804,8]
[426092388,1782144646000,-500.0,0.00027002,2]
[426092359,1782144646000,-236.23414528,0.00026726,2]
[426092370,1782144646000,-2587.4903,0.00026876,2]
[426092367,1782144646000,-328.95454307,0.00026772,2]
[426092366,1782144646000,-200.0,0.00026765,2]
[426092364,1782144646000,-519.20465562,0.00026741,2]
[426092371,1782144646000,-14701.54489088,0.00026889,2]
[426092375,1782144646000,-250.0,0.00027,2]
[426092372,1782144646000,-2000.0,0.000269,2]
[426092374,1782144646000,-1354.10089645,0.00027,10]
[426092373,1782144646000,-785.0,0.00026921,2]
[426092377,1782144646000,-1056.37288543,0.00027,2]
[426092381,1782144646000,-500.0,0.00027002,2]
[426092376,1782144646000,-350945.48479855,0.00027,2]
[426092378,1782144646000,-530.0,0.00027,2]
[426092390,1782144646000,-500.0,0.00027002,2]
[426092383,1782144646000,-500.0,0.00027002,2]
[426092385,1782144646000,-500.0,0.00027002,2]
[426092396,1782144646000,-593.0,0.00027002,2]
[426092384,1782144646000,-500.0,0.00027002,2]